lending/lending_fUSD_20250224
["ID","MTS","AMOUNT","RATE_DAILY","PERIOD"]
[354251340,1740366645144,-826.65,0.0001652,2]
[354251341,1740366645154,-500.0,0.0001652,2]
[354251342,1740366645163,-866.19,0.0001652,2]
[354251343,1740366645172,-697.22,0.0001652,2]
[354251344,1740366645182,-500.0,0.0001652,2]
[354251345,1740366645191,-1077.81,0.0001652,2]
[354251346,1740366645200,-486.08311041,0.0001652,2]
[354251347,1740366645209,-671.25,0.0001652,2]
[354251348,1740366645218,-708.23,0.0001652,2]
[354251349,1740366645228,-500.0,0.0001652,2]
[354251350,1740366645237,-500.0,0.0001652,2]
[354251351,1740366645246,-500.0,0.0001652,2]
[354251352,1740366645255,-500.0,0.0001652,2]
[354251353,1740366645264,-958.02,0.0001652,2]
[354251354,1740366645273,-500.0,0.0001652,2]
[354251355,1740366645283,-500.0,0.0001652,2]
[354251356,1740366645292,-627.02,0.0001652,2]
[354251357,1740366645302,-500.0,0.0001652,2]
[354251358,1740366645311,-500.0,0.0001652,2]
[354251359,1740366645321,-666.11,0.0001652,2]
[354251360,1740366645330,-910.46,0.0001652,2]
[354251361,1740366645339,-1019.37,0.0001652,2]
[354251362,1740366645349,-500.0,0.0001652,2]
[354251363,1740366645358,-500.0,0.0001652,2]
[354251364,1740366645368,-500.0,0.0001652,2]
[354251365,1740366645377,-500.0,0.0001652,2]
[354251366,1740366645387,-1000.64,0.0001652,2]
[354251367,1740366645397,-559.96,0.0001652,2]
[354251368,1740366645406,-1012.09,0.0001652,2]
[354251369,1740366645415,-500.0,0.0001652,2]
[354251370,1740366645424,-655.95,0.0001652,2]
[354251371,1740366645434,-570.74,0.0001652,2]
[354251372,1740366645444,-628.93,0.0001652,2]
[354251373,1740366645454,-540.97,0.0001652,2]
[354251374,1740366645464,-500.0,0.0001652,2]
[354251375,1740366645474,-644.53,0.0001652,2]
[354251376,1740366645483,-500.0,0.0001652,2]
[354251377,1740366645493,-500.0,0.0001652,2]
[354251379,1740366645502,-862.28,0.0001652,2]
[354251381,1740366645512,-500.0,0.0001652,2]
[354251382,1740366645523,-866.19,0.0001652,2]
[354251383,1740366645533,-500.0,0.0001652,2]
[354251384,1740366645542,-500.0,0.0001652,2]
[354251385,1740366645552,-1118.32,0.0001652,2]
[354251386,1740366645561,-500.0,0.0001652,2]
[354251387,1740366645638,-1324.51,0.0001652,2]
[354251388,1740366645649,-514.97058948,0.0001652,2]
[354251389,1740366645659,-500.0,0.0001652,2]
[354251390,1740366645669,-500.0,0.0001652,2]
[354251391,1740366645679,-1151.19,0.0001652,2]
[354251392,1740366645688,-500.0,0.0001652,2]
[354251393,1740366645699,-616.76,0.0001652,2]
[354251394,1740366645709,-500.0,0.0001652,2]
[354251395,1740366645718,-500.0,0.0001652,2]
[354251396,1740366645729,-540.13,0.0001652,2]
[354251397,1740366645740,-708.5,0.0001652,2]
[354251398,1740366645750,-524.5,0.0001652,2]
[354251399,1740366645760,-1754.71,0.0001652,2]
[354251400,1740366645770,-500.0,0.0001652,2]
[354251401,1740366645780,-500.0,0.0001652,2]
[354251402,1740366645790,-627.95564605,0.0001652,2]
[354251403,1740366645838,-303.43435395,0.0001652,2]
[354251404,1740366645848,-500.0,0.0001652,2]
[354251405,1740366645860,-607.68,0.0001652,2]
[354251406,1740366645870,-1081.25,0.0001652,2]
[354251407,1740366645880,-572.2,0.0001652,2]
[354251408,1740366645889,-500.0,0.0001652,2]
[354251409,1740366645901,-500.0,0.0001652,2]
[354251410,1740366645911,-500.0,0.0001652,2]
[354251411,1740366645920,-958.32,0.0001652,2]
[354251413,1740366645930,-500.0,0.0001652,2]
[354251415,1740366645940,-909.66,0.0001652,2]
[354251417,1740366645951,-500.0,0.0001652,2]
[354251419,1740366645960,-503.12,0.0001652,2]
[354251421,1740366645970,-1791.83,0.0001652,2]
[354251423,1740366645979,-759.91,0.0001652,2]
[354251425,1740366645988,-365.82890916,0.0001652,2]
[354251427,1740366646004,-134.17109084,0.0001652,2]
[354251429,1740366646014,-500.0,0.0001652,2]
[354251431,1740366646023,-653.64,0.0001652,2]
[354251433,1740366646033,-893.6,0.0001652,2]
[354251435,1740366646042,-500.0,0.0001652,2]
[354251437,1740366646052,-510.24,0.0001652,2]
[354251439,1740366646061,-533.47,0.0001652,2]
[354251441,1740366646071,-500.0,0.0001652,2]
[354251443,1740366646080,-500.0,0.0001652,2]
[354251445,1740366646090,-506.77,0.0001652,2]
[354251447,1740366646099,-547.21,0.0001652,2]
[354251449,1740366646109,-1017.87,0.0001652,2]
[354251451,1740366646118,-527.81,0.0001652,2]
[354251453,1740366646128,-699.08,0.0001652,2]
[354251455,1740366646138,-500.0,0.0001652,2]
[354251457,1740366646149,-500.0,0.0001652,2]
[354251459,1740366646158,-151.0,0.0001652,2]
[354251461,1740366646168,-1023.51,0.0001652,2]
[354251463,1740366646178,-500.0,0.0001652,2]
[354251465,1740366646188,-645.92,0.0001652,2]
[354251467,1740366646198,-590.2023465,0.0001652,2]
[354251469,1740366646207,-500.0,0.0001652,2]
[354251471,1740366646216,-500.0,0.0001652,2]
[354251473,1740366646225,-512.53,0.0001652,2]
[354251475,1740366646234,-556.7,0.0001652,2]
[354251477,1740366646244,-500.0,0.0001652,2]
[354251479,1740366646253,-500.0,0.0001652,2]
[354251481,1740366646263,-536.9,0.0001652,2]
[354251483,1740366646272,-500.0,0.0001652,2]
[354251485,1740366646281,-500.0,0.0001652,2]
[354251487,1740366646290,-563.95,0.0001652,2]
[354251489,1740366646299,-1082.84,0.0001652,2]
[354251491,1740366646308,-500.0,0.0001652,2]
[354251493,1740366646318,-607.12,0.0001652,2]
[354251495,1740366646327,-230.425858,0.0001652,2]
[354251497,1740366646336,-500.0,0.0001652,2]
[354251499,1740366646345,-500.0,0.0001652,2]
[354251501,1740366646354,-748.72,0.0001652,2]
[354251503,1740366646363,-647.02,0.0001652,2]
[354251505,1740366646374,-500.0,0.0001652,2]
[354251507,1740366646382,-500.0,0.0001652,2]
[354251509,1740366646391,-500.0,0.0001652,2]
[354251511,1740366646403,-500.0,0.0001652,2]
[354251513,1740366646413,-500.0,0.0001652,2]
[354251515,1740366646422,-1020.62,0.0001652,2]
[354251517,1740366646431,-500.0,0.0001652,2]
[354251519,1740366646441,-1169.52,0.0001652,2]
[354251521,1740366646450,-500.0,0.0001652,2]
[354251523,1740366646460,-623.86,0.0001652,2]
[354251525,1740366646472,-1394.64,0.0001652,2]
[354251527,1740366646482,-862.08,0.0001652,2]
[354251529,1740366646491,-500.0,0.0001652,2]
[354251531,1740366646500,-996.54,0.0001652,2]
[354251533,1740366646510,-582.85,0.0001652,2]
[354251535,1740366646519,-2712.44,0.0001652,2]
[354251538,1740366646528,-500.0,0.0001652,2]
[354251539,1740366646537,-825.74,0.0001652,2]
[354251541,1740366646547,-682.15,0.0001652,2]
[354251543,1740366646557,-1223.63,0.0001652,2]
[354251545,1740366646566,-151.0,0.0001652,2]
[354251547,1740366646575,-500.0,0.0001652,2]
[354251549,1740366646584,-2280.7,0.0001652,2]
[354251551,1740366646594,-1305.28,0.0001652,2]
[354251553,1740366646603,-730.56,0.0001652,2]
[354251555,1740366646612,-581.92,0.0001652,2]
[354251557,1740366646622,-500.0,0.0001652,2]
[354251559,1740366646631,-500.0,0.0001652,2]
[354251561,1740366646641,-804.59,0.0001652,2]
[354251563,1740366646651,-2377.92,0.0001652,2]
[354251565,1740366646660,-4183.58,0.0001652,2]
[354251567,1740366646669,-1000.0,0.0001652,2]
[354251569,1740366646679,-635.61,0.0001652,2]
[354251571,1740366646688,-677.58,0.0001652,2]
[354251573,1740366646697,-1859.41,0.0001652,2]
[354251575,1740366646706,-500.0,0.0001652,2]
[354251577,1740366646716,-500.0,0.0001652,2]
[354251579,1740366646725,-500.0,0.0001652,2]
[354251581,1740366646734,-885.73,0.0001652,2]
[354251583,1740366646743,-500.0,0.0001652,2]
[354251585,1740366646753,-2387.33,0.0001652,2]
[354251587,1740366646762,-500.0,0.0001652,2]
[354251589,1740366646772,-729.12,0.0001652,2]
[354251591,1740366646780,-2855.16,0.0001652,2]
[354251593,1740366646789,-1396.27,0.0001652,2]
[354251595,1740366646799,-4527.08,0.0001652,2]
[354251596,1740366646808,-1568.65,0.0001652,2]
[354251597,1740366646816,-2504.13,0.0001652,2]
[354251598,1740366646825,-3187.45,0.0001652,2]
[354251599,1740366646834,-500.0,0.0001652,2]
[354251600,1740366646843,-500.0,0.0001652,2]
[354251601,1740366646852,-827.79,0.0001652,2]
[354251602,1740366646864,-2509.75,0.0001652,2]
[354251603,1740366646872,-676.06,0.0001652,2]
[354251604,1740366646882,-1949.82,0.0001652,2]
[354251605,1740366646891,-2785.05,0.0001652,2]
[354251606,1740366646902,-1160.17,0.0001652,2]
[354251607,1740366646911,-703.66,0.0001652,2]
[354251608,1740366646920,-1280.56,0.0001652,2]
[354251609,1740366646929,-1598.1,0.0001652,2]
[354251610,1740366646940,-2594.4,0.0001652,2]
[354251611,1740366646951,-1524.65,0.0001652,2]
[354251612,1740366646960,-1444.5,0.0001652,2]
[354251613,1740366646969,-151.0,0.0001652,2]
[354251614,1740366646978,-500.0,0.0001652,2]
[354251615,1740366646987,-1358.83,0.0001652,2]
[354251616,1740366646996,-2765.99,0.0001652,2]
[354251617,1740366647005,-1121.14,0.0001652,2]
[354251618,1740366647014,-15031.72,0.0001652,2]
[354251619,1740366647025,-1100.34,0.0001652,2]
[354251620,1740366647034,-500.0,0.0001652,2]
[354251621,1740366647043,-5548.26,0.0001652,2]
[354251622,1740366647052,-2648.54,0.0001652,2]
[354251623,1740366647062,-2303.8,0.0001652,2]
[354251624,1740366647071,-208.407623,0.0001652,2]
[354251625,1740366647080,-208.407623,0.0001652,2]
[354251626,1740366647089,-942.51,0.0001652,2]
[354251627,1740366647099,-1465.44,0.0001652,2]
[354251628,1740366647108,-668.05,0.0001652,2]
[354251629,1740366647119,-550.9,0.0001652,2]
[354251630,1740366647128,-208.407623,0.0001652,2]
[354251631,1740366647137,-208.407623,0.0001652,2]
[354251632,1740366647147,-500.0,0.0001652,2]
[354251633,1740366647156,-500.0,0.0001652,2]
[354251634,1740366647166,-620.75,0.0001652,2]
[354251635,1740366647175,-715.47,0.0001652,2]
[354251636,1740366647184,-647.3,0.0001652,2]
[354251637,1740366647194,-1395.15,0.0001652,2]
[354251638,1740366647203,-1759.47,0.0001652,2]
[354251639,1740366647211,-500.0,0.0001652,2]
[354251640,1740366647222,-500.0,0.0001652,2]
[354251641,1740366647230,-500.0,0.0001652,2]
[354251642,1740366647239,-782.24,0.0001652,2]
[354251643,1740366647250,-152.459196,0.0001652,2]
[354251644,1740366647259,-151.0,0.0001652,2]
[354251645,1740366647268,-2126.41,0.0001652,2]
[354251646,1740366647278,-2515.21,0.0001652,2]
[354251647,1740366647287,-1820.09,0.0001652,2]
[354251648,1740366647295,-2970.64,0.0001652,2]
[354251649,1740366647305,-826.49,0.0001652,2]
[354251650,1740366647314,-1777.61,0.0001652,2]
[354251651,1740366647324,-3035.91,0.0001652,2]
[354251652,1740366647333,-1623.07,0.0001652,2]
[354251653,1740366647343,-500.0,0.0001652,2]
[354251654,1740366647352,-1712.3,0.0001652,2]
[354251655,1740366647361,-1405.53,0.0001652,2]
[354251656,1740366647370,-151.327359,0.0001652,2]
[354251657,1740366647379,-500.0,0.0001652,2]
[354251658,1740366647388,-527.68,0.0001652,2]
[354251659,1740366647397,-4414.96,0.0001652,2]
[354251660,1740366647407,-500.0,0.0001652,2]
[354251661,1740366647415,-1094.56,0.0001652,2]
[354251662,1740366647425,-1764.12,0.0001652,2]
[354251663,1740366647434,-2045.16,0.0001652,2]
[354251664,1740366647443,-548.87,0.0001652,2]
[354251665,1740366647452,-1583.54,0.0001652,2]
[354251666,1740366647461,-1685.71,0.0001652,2]
[354251667,1740366647470,-500.0,0.0001652,2]
[354251668,1740366647479,-151.0,0.0001652,2]
[354251669,1740366647488,-500.0,0.0001652,2]
[354251670,1740366647498,-984.06,0.0001652,2]
[354251671,1740366647508,-2169.44,0.0001652,2]
[354251672,1740366647517,-2702.38,0.0001652,2]
[354251673,1740366647526,-151.787636,0.0001652,2]
[354251674,1740366647535,-500.0,0.0001652,2]
[354251675,1740366647544,-2259.56,0.0001652,2]
[354251676,1740366647553,-3073.14,0.0001652,2]
[354251677,1740366647562,-2517.76,0.0001652,2]
[354251678,1740366647571,-500.0,0.0001652,2]
[354251679,1740366647581,-151.0,0.0001652,2]
[354251680,1740366647589,-151.0,0.0001652,2]
[354251681,1740366647598,-1693.54,0.0001652,2]
[354251682,1740366647607,-151.0,0.0001652,2]
[354251683,1740366647616,-500.0,0.0001652,2]
[354251684,1740366647625,-151.0,0.0001652,2]
[354251685,1740366647634,-961.92,0.0001652,2]
[354251686,1740366647643,-500.0,0.0001652,2]
[354251687,1740366647653,-1668.8,0.0001652,2]
[354251688,1740366647662,-3033.15,0.0001652,2]
[354251689,1740366647671,-500.0,0.0001652,2]
[354251690,1740366647681,-2282.8,0.0001652,2]
[354251691,1740366647691,-2432.99,0.0001652,2]
[354251692,1740366647701,-628.53,0.0001652,2]
[354251693,1740366647710,-1199.62,0.0001652,2]
[354251694,1740366647719,-3090.88,0.0001652,2]
[354251695,1740366647728,-1043.63,0.0001652,2]
[354251696,1740366647737,-2314.37,0.0001652,2]
[354251697,1740366647746,-520.33,0.0001652,2]
[354251698,1740366647755,-1592.9,0.0001652,2]
[354251699,1740366647765,-152.459197,0.0001652,2]
[354251700,1740366647775,-3148.12,0.0001652,2]
[354251701,1740366647783,-500.0,0.0001652,2]
[354251702,1740366647792,-2363.66,0.0001652,2]
[354251703,1740366647801,-500.0,0.0001652,2]
[354251704,1740366647810,-2137.53,0.0001652,2]
[354251705,1740366647820,-3126.82,0.0001652,2]
[354251706,1740366647829,-991.68,0.0001652,2]
[354251707,1740366647838,-151.0,0.0001652,2]
[354251708,1740366647847,-151.0,0.0001652,2]
[354251709,1740366647859,-1057.63,0.0001652,2]
[354251710,1740366647868,-3853.8,0.0001652,2]
[354251711,1740366647877,-1150.23,0.0001652,2]
[354251712,1740366647886,-1312.86,0.0001652,2]
[354251713,1740366647899,-2712.79,0.0001652,2]
[354251714,1740366647909,-500.0,0.0001652,2]
[354251715,1740366647918,-768.66,0.0001652,2]
[354251716,1740366647927,-6171.41,0.0001652,2]
[354251717,1740366647937,-500.0,0.0001652,2]
[354251718,1740366647947,-1067.43,0.0001652,2]
[354251719,1740366647956,-500.0,0.0001652,2]
[354251720,1740366647964,-1686.78,0.0001652,2]
[354251721,1740366647973,-1781.11,0.0001652,2]
[354251722,1740366647982,-500.0,0.0001652,2]
[354251723,1740366647991,-569.09,0.0001652,2]
[354251724,1740366648000,-2536.38,0.0001652,2]
[354251725,1740366648009,-1380.73,0.0001652,2]
[354251726,1740366648018,-500.0,0.0001652,2]
[354251727,1740366648027,-500.0,0.0001652,2]
[354251728,1740366648037,-990.04,0.0001652,2]
[354251729,1740366648046,-151.0,0.0001652,2]
[354251730,1740366648056,-151.0,0.0001652,2]
[354251731,1740366648065,-500.0,0.0001652,2]
[354251732,1740366648075,-500.0,0.0001652,2]
[354251733,1740366648084,-151.0,0.0001652,2]
[354251734,1740366648093,-151.0,0.0001652,2]
[354251735,1740366648102,-1338.4,0.0001652,2]
[354251736,1740366648112,-1286.29,0.0001652,2]
[354251737,1740366648121,-1452.43,0.0001652,2]
[354251738,1740366648130,-500.0,0.0001652,2]
[354251739,1740366648138,-500.0,0.0001652,2]
[354251740,1740366648147,-1993.36,0.0001652,2]
[354251741,1740366648157,-1740.01,0.0001652,2]
[354251742,1740366648167,-947.69,0.0001652,2]
[354251743,1740366648177,-2881.63,0.0001652,2]
[354251744,1740366648187,-1390.23,0.0001652,2]
[354251745,1740366648196,-500.0,0.0001652,2]
[354251746,1740366648205,-3456.81,0.0001652,2]
[354251747,1740366648215,-2579.72,0.0001652,2]
[354251748,1740366648224,-1205.93,0.0001652,2]
[354251749,1740366648233,-500.0,0.0001652,2]
[354251750,1740366648243,-1436.64,0.0001652,2]
[354251751,1740366648252,-638.52098232,0.0001652,2]
[354251752,1740366648261,-3716.75,0.0001652,2]
[354251753,1740366648271,-2658.2,0.0001652,2]
[354251754,1740366648280,-2572.0,0.0001652,2]
[354251755,1740366648289,-2789.46,0.0001652,2]
[354251756,1740366648299,-2037.91,0.0001652,2]
[354251757,1740366648308,-500.0,0.0001652,2]
[354251758,1740366648318,-884.43,0.0001652,2]
[354251759,1740366648328,-1011.64,0.0001652,2]
[354251760,1740366648337,-801.08,0.0001652,2]
[354251761,1740366648347,-500.0,0.0001652,2]
[354251762,1740366648356,-2738.63,0.0001652,2]
[354251763,1740366648366,-1597.24,0.0001652,2]
[354251764,1740366648375,-500.0,0.0001652,2]
[354251765,1740366648385,-3751.64,0.0001652,2]
[354251766,1740366648395,-2029.48,0.0001652,2]
[354251767,1740366648406,-500.0,0.0001652,2]
[354251768,1740366648416,-1672.04,0.0001652,2]
[354251769,1740366648425,-1073.99,0.0001652,2]
[354251770,1740366648435,-3165.69,0.0001652,2]
[354251771,1740366648444,-616.41,0.0001652,2]
[354251772,1740366648454,-1357.2,0.0001652,2]
[354251773,1740366648464,-793.86,0.0001652,2]
[354251774,1740366648474,-1117.75,0.0001652,2]
[354251775,1740366648484,-500.0,0.0001652,2]
[354251776,1740366648494,-1208.07,0.0001652,2]
[354251777,1740366648504,-2378.53,0.0001652,2]
[354251778,1740366648514,-7002.51,0.0001652,2]
[354251779,1740366648524,-500.0,0.0001652,2]
[354251780,1740366648534,-500.0,0.0001652,2]
[354251781,1740366648543,-777.93,0.00016521,2]
[354251782,1740366648553,-1551.36,0.00016521,2]
[354251783,1740366648563,-880.1,0.00016521,2]
[354251784,1740366648573,-150.0,0.00016521,2]
[354251785,1740366648583,-150.0,0.00016523,2]
[354251786,1740366648592,-1000.0,0.00016523,2]
[354251787,1740366648602,-150.0,0.00016526,2]
[354251788,1740366648612,-150.0,0.00016528,2]
[354251789,1740366648622,-150.0,0.00016534,2]
[354251790,1740366648631,-150.0,0.00016541,2]
[354251791,1740366648641,-192.95444008,0.00016548,2]
[354251792,1740366648650,-150.0,0.0001655,2]
[354251793,1740366648660,-150.0,0.00016551,2]
[354251794,1740366648669,-150.0,0.00016558,2]
[354251795,1740366648680,-150.0,0.00016566,2]
[354251796,1740366648690,-150.0,0.00016567,2]
[354251797,1740366648700,-1771.92397959,0.0001657,2]
[354251798,1740366648710,-1000.0,0.00016572,2]
[354251799,1740366648720,-150.0,0.00016572,2]
[354251800,1740366648730,-150.0,0.00016573,2]
[354251801,1740366648740,-1000.0,0.00016573,2]
[354251802,1740366648749,-150.0,0.00016575,2]
[354251803,1740366648759,-150.0,0.00016578,2]
[354251804,1740366648768,-150.0,0.00016581,2]
[354251805,1740366648778,-150.92562861,0.00016583,2]
[354251806,1740366648790,-150.0,0.00016585,2]
[354251807,1740366648799,-150.0,0.00016586,2]
[354251808,1740366648809,-150.0,0.00016587,2]
[354251809,1740366648818,-1168.4217178,0.00016589,2]
[354251810,1740366648827,-347.8916118,0.00016589,2]
[354251811,1740366648837,-1208.5311326,0.00016589,2]
[354251812,1740366648847,-440.6304601,0.00016589,2]
[354251813,1740366648857,-1323.0205144,0.00016589,2]
[354251814,1740366648869,-150.0,0.00016591,2]
[354251815,1740366648880,-150.0,0.00016593,2]
[354251816,1740366648889,-150.0,0.00016594,2]
[354251817,1740366648902,-150.0,0.00016596,2]
[354251818,1740366648911,-150.0,0.00016598,2]
[354251819,1740366648921,-1475.23,0.00016599,2]
[354251820,1740366648931,-999.0,0.00016599,2]
[354251821,1740366648941,-500.0,0.00016599,2]
[354251822,1740366648952,-395.30434255,0.00016599,2]
[354251823,1740366648962,-1350.0,0.000166,2]
[354251824,1740366648971,-3962857.05938263,0.000166,3]
[354251825,1740366648982,-243721.9927908,0.000166,3]
[354251826,1740366649000,-62336.91427417,0.000166,3]
[354251827,1740366649010,-151.234124,0.000166,2]
[354251828,1740366649019,-150.0,0.000166,2]
[354251829,1740366649028,-2400.0,0.000166,6]
[354251830,1740366649037,-641.0,0.000166,2]
[354251831,1740366649047,-208.407623,0.000166,2]
[354251832,1740366649056,-208.407623,0.000166,2]
[354251833,1740366649065,-208.407623,0.000166,2]
[354251834,1740366649074,-208.407623,0.000166,2]
[354251835,1740366649083,-151.0,0.000166,2]
[354251836,1740366649093,-151.0,0.000166,2]
[354251837,1740366649102,-151.0,0.000166,2]
[354251838,1740366649112,-151.0,0.000166,2]
[354251839,1740366649122,-151.0,0.000166,2]
[354251840,1740366649131,-151.0,0.000166,2]
[354251841,1740366649140,-152.244657,0.000166,2]
[354251842,1740366649150,-782.0,0.000166,2]
[354251843,1740366649160,-152.00525,0.000166,2]
[354251844,1740366649170,-151.0,0.000166,2]
[354251845,1740366649180,-151.0,0.000166,2]
[354251846,1740366649189,-151.0,0.000166,2]
[354251847,1740366649199,-150.0,0.00016601,2]
[354251848,1740366649209,-931.01,0.00016602,2]
[354251849,1740366649218,-500.0,0.00016602,2]
[354251850,1740366649227,-500.0,0.00016602,2]
[354251851,1740366649236,-500.0,0.00016602,2]
[354251852,1740366649246,-500.0,0.00016602,2]
[354251853,1740366649255,-500.0,0.00016602,2]
[354251854,1740366649264,-500.0,0.00016602,2]
[354251855,1740366649275,-500.0,0.00016602,2]
[354251856,1740366649284,-500.0,0.00016602,2]
[354251857,1740366649294,-671.66,0.00016602,2]
[354251858,1740366649304,-500.0,0.00016602,2]
[354251859,1740366649314,-500.0,0.00016602,2]
[354251860,1740366649324,-500.0,0.00016602,2]
[354251861,1740366649333,-651.61,0.00016602,2]
[354251862,1740366649343,-500.0,0.00016602,2]
[354251863,1740366649352,-500.0,0.00016602,2]
[354251864,1740366649361,-500.0,0.00016602,2]
[354251865,1740366649371,-4679.757,0.00016602,2]
[354251866,1740366649381,-181.099,0.00016602,2]
[354251867,1740366649391,-500.0,0.00016602,2]
[354251868,1740366649402,-500.0,0.00016602,2]
[354251869,1740366649413,-617.61,0.00016602,2]
[354251870,1740366649425,-646.48,0.00016602,2]
[354251871,1740366649435,-500.0,0.00016602,2]
[354251872,1740366649445,-500.0,0.00016602,2]
[354251873,1740366649454,-861.66,0.00016602,2]
[354251874,1740366649464,-362.130668,0.00016602,2]
[354251875,1740366649474,-500.0,0.00016602,2]
[354251876,1740366649484,-500.0,0.00016602,2]
[354251877,1740366649494,-544.49,0.00016602,2]
[354251878,1740366649504,-1111.56,0.00016602,2]
[354251879,1740366649514,-500.0,0.00016602,2]
[354251880,1740366649523,-544.93830094,0.00016602,2]
[354251881,1740366649533,-596.54,0.00016602,2]
[354251882,1740366649543,-500.0,0.00016602,2]
[354251883,1740366649553,-1149.37,0.00016602,2]
[354251884,1740366649563,-200.74079877,0.00016602,2]
[354251885,1740366649574,-687.0,0.00016602,2]
[354251886,1740366649584,-553.43,0.00016602,2]
[354251887,1740366649594,-500.0,0.00016602,2]
[354251888,1740366649603,-368.329112,0.00016602,2]
[354251889,1740366649613,-703.84,0.00016602,2]
[354251890,1740366649622,-1326.67,0.00016602,2]
[354251891,1740366649632,-1102.09,0.00016602,2]
[354251892,1740366649641,-637.61,0.00016602,2]
[354251893,1740366649651,-500.0,0.00016602,2]
[354251894,1740366649660,-500.0,0.00016602,2]
[354251895,1740366649670,-500.0,0.00016602,2]
[354251896,1740366649681,-500.0,0.00016602,2]
[354251897,1740366649690,-1076.63,0.00016602,2]
[354251898,1740366649700,-518.19,0.00016602,2]
[354251899,1740366649709,-1256.73,0.00016602,2]
[354251900,1740366649719,-500.0,0.00016602,2]
[354251901,1740366649728,-857.2,0.00016602,2]
[354251902,1740366649738,-1977.42,0.00016602,2]
[354251903,1740366649748,-695.33,0.00016602,2]
[354251904,1740366649758,-500.0,0.00016602,2]
[354251905,1740366649768,-500.0,0.00016602,2]
[354251906,1740366649777,-500.0,0.00016602,2]
[354251907,1740366649787,-500.0,0.00016602,2]
[354251908,1740366649797,-1243.07,0.00016602,2]
[354251909,1740366649806,-1572.56,0.00016602,2]
[354251910,1740366649815,-500.0,0.00016602,2]
[354251911,1740366649825,-500.0,0.00016602,2]
[354251912,1740366649834,-500.0,0.00016602,2]
[354251913,1740366649844,-494.9839508,0.00016602,2]
[354251914,1740366649858,-825.96,0.00016602,2]
[354251915,1740366649867,-772.57,0.00016602,2]
[354251916,1740366649877,-646.87,0.00016602,2]
[354251917,1740366649886,-403.07258097,0.00016602,2]
[354251918,1740366649898,-1653.55,0.00016602,2]
[354251919,1740366649908,-500.0,0.00016602,2]
[354251920,1740366649917,-500.0,0.00016602,2]
[354251921,1740366649927,-655.33,0.00016602,2]
[354251922,1740366649937,-500.0,0.00016602,2]
[354251923,1740366649946,-904.62,0.00016602,2]
[354251924,1740366649956,-540.53,0.00016602,2]
[354251925,1740366649965,-907.46,0.00016602,2]
[354251926,1740366649974,-500.0,0.00016602,2]
[354251927,1740366649984,-689.41,0.00016602,2]
[354251928,1740366649993,-1163.27,0.00016602,2]
[354251929,1740366650002,-850.46,0.00016602,2]
[354251930,1740366650012,-741.83,0.00016602,2]
[354251931,1740366650021,-500.0,0.00016602,2]
[354251932,1740366650030,-500.0,0.00016602,2]
[354251933,1740366650040,-500.0,0.00016602,2]